bitfinex/quotes_ETHUSD_20220120
["timestamp","ask_amount","ask_price","bid_price","bid_amount"]
[1642691346567,0.007,3261.8,3260.6,2.55271664]
[1642691346568,3.25,3261.3,3260.6,2.55271664]
[1642691346775,0.007,3261.2,3260.5,1.0]
[1642691346976,1.17760276,3261.4,3259.3,0.01274113]
[1642691346977,6.0,3261.0,3259.3,0.01274113]
[1642691347177,6.0,3261.0,3259.2,6.4155825]
[1642691347178,0.007,3260.9,3259.2,6.4155825]
[1642691347373,2.65756036,3260.9,3259.4,0.00738951]
[1642691347574,3.06834778,3260.8,3259.4,0.00738951]
[1642691347816,0.007,3260.7,3259.4,0.00738951]
[1642691348224,0.138127,3260.6,3259.4,0.00738951]
[1642691348416,0.007,3260.5,3259.4,8.951e-05]
[1642691348621,0.007,3259.8,3258.5,0.01285649]
[1642691348823,1.40005183,3259.6,3259.4,0.01252511]
[1642691349021,0.01003202,3259.5,3259.3,0.01275374]
[1642691349221,0.01003202,3259.5,3259.4,0.01218379]
[1642691349421,0.00170527,3259.7,3259.4,0.01218379]
[1642691349422,0.00170527,3259.7,3259.6,4.23025155]
[1642691349625,0.00170527,3259.7,3259.6,4.24258028]
[1642691349824,0.007,3261.4,3259.6,4.24258028]
[1642691349825,0.02891951,3261.7,3259.7,2.45]
[1642691350022,0.007,3261.1,3260.6,0.01276674]
[1642691350423,0.007,3261.1,3261.0,0.01204531]
[1642691350924,0.01495793,3261.1,3261.0,0.01204531]
[1642691351124,0.00795793,3261.1,3261.0,0.01204531]
[1642691351329,0.13819997,3262.1,3261.2,0.16528709]
[1642691351574,0.13819997,3262.1,3261.9,0.01278624]
[1642691351773,0.13819997,3262.1,3261.1,0.29537378]
[1642691351774,1.48409622,3261.3,3261.1,2.66976934]
[1642691351970,1.48409622,3261.3,3261.1,0.02387378]
[1642691352779,0.00170527,3261.4,3261.1,0.02387378]
[1642691353079,4.5959,3264.3,3261.3,6.0]
[1642691353080,1.21024514,3262.9,3261.3,6.0]
[1642691353279,0.007,3263.5,3262.2,0.01258136]
[1642691353574,0.00682108,3262.6,3262.3,0.08357067]
[1642691353773,0.007,3263.7,3262.3,0.1028387]
[1642691353978,0.007,3263.7,3262.4,0.00113684]
[1642691354178,0.00454739,3263.4,3262.4,0.00113684]
[1642691354377,1.51799748,3262.7,3262.3,0.00170527]
[1642691354576,0.007,3262.6,3262.3,0.00170527]
[1642691354775,0.007,3262.6,3261.1,0.02387378]
[1642691354776,0.007,3262.6,3261.2,0.01255809]
[1642691354977,0.007,3262.6,3261.1,2.22146213]
[1642691354978,0.01216588,3262.4,3261.1,2.22146213]
[1642691355175,0.007,3262.3,3261.3,0.00568423]
[1642691355408,1.13435943,3262.2,3261.3,0.00568423]
[1642691355606,0.00876384,3262.1,3261.3,0.00568423]
[1642691356010,0.00876384,3262.1,3261.2,0.00625265]
[1642691356615,0.007,3262.1,3261.2,0.00625265]
[1642691357018,0.007,3262.1,3261.3,0.1267936]
[1642691357213,0.032,3262.3,3261.2,0.09011884]
[1642691357413,0.032,3262.3,3261.4,0.00511581]
[1642691357614,0.04976384,3262.3,3261.4,0.00511581]
[1642691357817,0.04976384,3262.3,3261.1,0.02387378]
[1642691357818,0.007,3263.1,3262.2,0.01219224]
[1642691358016,0.007,3263.5,3262.3,0.08597878]
[1642691358215,0.007,3263.5,3262.3,0.00113685]
[1642691358216,0.00397897,3263.2,3262.3,0.00113685]
[1642691358615,0.00341054,3263.1,3262.3,0.00113685]
[1642691358815,1.51297258,3263.0,3262.3,0.00113685]
[1642691359065,1.11992804,3262.9,3262.4,18.27]
[1642691359265,0.007,3263.5,3262.8,0.01242189]
[1642691359459,1.41762579,3262.9,3262.6,18.18242189]
[1642691359860,1.41762579,3262.9,3260.9,0.1296]
[1642691359861,6.0,3262.8,3260.9,0.1208]
[1642691360067,19.79962716,3262.8,3260.2,0.27478]
[1642691360261,1.42643456,3261.9,3261.2,0.00852635]
[1642691360462,1.37576259,3261.8,3261.2,0.00852635]
[1642691360662,1.16796563,3261.3,3261.2,0.00852635]
[1642691360861,1.42643456,3261.9,3261.2,0.00852635]
[1642691360862,1.42643456,3261.9,3261.3,2.33593126]
[1642691361074,1.55352442,3261.4,3260.4,18.27]
[1642691361269,1.3683709,3261.3,3260.4,18.27]
[1642691361966,1.92452442,3261.4,3260.4,18.27]
[1642691362166,1.55352442,3261.4,3261.2,0.12952117]
[1642691362366,1.55352442,3261.4,3260.4,18.27]
[1642691363011,4.09728549,3261.2,3260.4,18.27]
[1642691363411,1.29728549,3261.2,3260.4,18.27]
[1642691363615,1.55528839,3261.4,3260.4,18.27]
[1642691363811,1.55528839,3261.4,3261.2,0.09006278]
[1642691363812,1.55352442,3261.4,3261.2,0.09006278]
[1642691364213,1.55352442,3261.4,3260.4,18.27]
[1642691364412,1.55352442,3261.4,3261.2,0.17146021]
[1642691364613,1.29405074,3261.3,3260.4,18.27]
[1642691364812,1.29405074,3261.3,3260.6,18.27]
[1642691365014,6.371,3261.2,3260.7,3.20775174]
[1642691365413,6.371,3261.2,3260.1,0.01205821]
[1642691365414,6.371,3261.2,3261.1,7.378e-05]
[1642691365619,6.371,3261.2,3259.8,0.0081677]
[1642691365620,6.0,3261.0,3259.0,0.01202947]
[1642691365819,6.0,3261.0,3258.3,0.01296997]
[1642691365820,1.17204394,3259.1,3258.3,0.01296997]
[1642691366016,3.58600924,3260.9,3258.3,0.01296997]
[1642691366017,0.371,3260.1,3259.1,1.92850097]
[1642691366221,0.00176397,3260.0,3259.1,1.92850097]
[1642691366415,0.371,3259.9,3259.2,0.01136847]
[1642691366882,1.14669946,3259.7,3259.3,0.16288265]
[1642691367080,0.371,3259.6,3259.2,18.28136847]
[1642691367279,1.25249257,3259.8,3259.6,18.96199999]
[1642691367280,3.90176397,3259.7,3259.6,18.96199999]
[1642691367482,3.9,3259.7,3259.6,18.96199999]
[1642691367681,1.25249257,3259.8,3259.6,18.97109477]
[1642691367884,6.0,3259.6,3259.1,1.92850097]
[1642691368089,1.5570976,3259.5,3259.1,1.92850097]
[1642691368382,1.5570976,3259.5,3259.2,0.00227369]
[1642691369384,12.78276397,3259.7,3259.2,0.00227369]
[1642691370187,12.78276397,3259.7,3259.3,0.10945012]
[1642691370188,0.0080035,3259.6,3259.3,0.10945012]
[1642691370408,0.0080035,3259.6,3259.2,0.00227369]
[1642691370614,0.0080035,3259.6,3259.1,1.92850097]
[1642691370615,0.0080035,3259.6,3259.4,0.00113685]
[1642691370818,2.8,3259.5,3257.9,0.76753]
[1642691371017,1.22085074,3258.6,3257.9,0.76753]
[1642691371320,0.00176397,3259.4,3258.9,0.14148947]
[1642691371514,0.00976747,3259.6,3258.9,0.14148947]
[1642691371717,0.00976747,3259.6,3259.0,0.00227369]
[1642691371916,0.00976747,3259.6,3259.1,0.12344121]
[1642691371917,3.76876554,3259.6,3259.1,0.12344121]
[1642691372118,3.76876554,3259.6,3259.0,0.00227369]
[1642691372419,3.76876554,3259.6,3257.0,0.7978]
[1642691372420,6.0,3259.4,3257.0,0.7978]
[1642691372623,6.0,3259.4,3257.1,25.0465]
[1642691372624,0.01292033,3258.5,3257.1,25.0465]
[1642691373018,0.00176397,3258.5,3257.2,0.01136847]
[1642691373221,1.35158505,3258.3,3257.4,1.23323875]
[1642691373423,0.00170527,3259.5,3257.5,21.52929914]
[1642691373730,12.781,3259.7,3257.5,21.52929914]
[1642691373731,0.00113684,3259.4,3257.9,0.15206175]
[1642691373925,0.00113684,3259.4,3258.6,0.01228097]
[1642691374170,0.01153302,3259.6,3258.6,0.01228097]
[1642691374171,0.00170527,3259.5,3258.6,0.01228097]
[1642691374364,0.00170527,3259.5,3259.2,18.37798242]
[1642691374566,0.00113684,3259.4,3259.2,18.27]
[1642691374966,0.00170527,3259.5,3259.3,0.08638693]
[1642691375165,0.00170527,3259.5,3259.2,18.27]
[1642691375365,0.00113684,3259.4,3259.2,18.27]
[1642691375767,0.00170527,3259.5,3259.2,18.27]
[1642691375966,0.00170527,3259.5,3259.3,0.09850549]
[1642691376169,3.25929914,3261.0,3259.3,3.4]
[1642691376368,3.6543,3261.1,3259.4,21.71353925]
[1642691376576,2.56283781,3262.0,3260.7,1.20389464]
[1642691376772,2.8099,3262.2,3260.9,18.27]
[1642691376773,0.00352873,3261.6,3260.9,18.27]
[1642691376966,2.4389,3262.2,3260.9,18.27]
[1642691376967,0.00795793,3261.0,3260.9,18.27]
[1642691377167,0.01080005,3261.5,3260.9,18.27]
[1642691377365,1.2359,3262.2,3260.9,18.27]
[1642691377366,0.01421059,3262.1,3260.9,18.27]
[1642691377566,0.01023162,3261.4,3260.9,18.27]
[1642691377816,1.2359,3262.2,3260.2,3.0679121]
[1642691377817,0.01364216,3262.0,3260.6,18.27]
[1642691378022,0.0096632,3261.3,3259.7,1.53433]
[1642691378225,0.0096632,3261.3,3259.0,2.6806377]
[1642691378226,0.01271754,3260.0,3259.1,3.25929914]
[1642691378422,0.371,3260.5,3258.7,0.00284212]
[1642691378621,0.00170527,3259.9,3259.2,0.00227369]
[1642691378821,3.3928598,3260.8,3259.1,18.27]
[1642691378822,0.00454739,3260.4,3259.1,18.27]
[1642691379024,0.00113685,3259.8,3259.2,1.53466]
[1642691379227,0.00397896,3260.3,3259.5,0.01203225]
[1642691379426,0.00625266,3260.7,3259.8,0.00308666]
[1642691379622,0.00341054,3260.2,3259.9,18.38549826]
[1642691379824,3.25929914,3262.0,3260.1,23.37]
[1642691380121,0.00795793,3261.6,3260.1,23.37]
[1642691380324,0.00795793,3261.6,3260.6,18.27]
[1642691380622,1.2359,3262.2,3260.6,18.264]
[1642691380623,0.00738951,3261.5,3260.6,18.264]
[1642691380821,0.00738951,3261.5,3260.8,1.55818964]
[1642691381021,1.12813136,3261.7,3260.5,0.76706]
[1642691381022,0.00682108,3261.4,3260.5,0.76706]
[1642691381227,0.00682108,3261.4,3260.2,0.76721]
[1642691381423,0.00625266,3261.3,3260.2,0.76721]
[1642691381867,1.12813136,3261.7,3260.3,3.25929914]
[1642691381868,0.00568424,3261.2,3260.3,3.25929914]
[1642691382062,1.51525147,3260.7,3260.4,0.15491024]
[1642691382261,0.371,3261.8,3260.3,18.27]
[1642691382262,0.00511581,3261.1,3260.3,18.27]
[1642691382562,0.00454739,3261.0,3260.4,3.25929914]
[1642691382763,0.00454739,3261.0,3260.5,19.80422]
[1642691382964,0.00397897,3260.9,3260.5,19.80422]
[1642691383162,8.3281,3262.1,3261.1,1.5171729]
[1642691383163,9.69541764,3262.1,3261.1,1.5171729]
[1642691383468,9.69541764,3262.1,3261.3,18.27]
[1642691383469,0.0096632,3261.9,3261.3,18.27]
[1642691383865,0.32049874,3265.2,3261.3,18.27]
[1642691383866,0.371,3263.3,3261.5,3.95]
[1642691384065,0.01200714,3263.9,3261.7,1.5333549]
[1642691384066,4.0927,3263.7,3261.7,1.5333549]
[1642691384269,4.0927,3263.7,3261.8,3.25929914]
[1642691384472,4.0927,3263.7,3261.8,1.53355]
[1642691384663,1.47696467,3262.1,3261.9,18.27]
[1642691384865,1.47696467,3262.1,3262.0,21.52929914]
[1642691385063,1.47696467,3262.1,3262.0,18.27]
[1642691385307,0.00625266,3263.1,3262.0,18.27]
[1642691385708,0.00625266,3263.1,3262.2,18.27]
[1642691385709,0.00568424,3263.0,3262.2,18.27]
[1642691385908,1.11780614,3262.8,3262.2,18.27]
[1642691386111,1.11780614,3262.8,3262.3,18.38280398]
[1642691386309,4.8785,3263.7,3262.3,19.80344]
[1642691386310,0.0017636,3263.4,3262.3,19.80344]
[1642691386712,0.00170527,3263.0,3262.6,1.53322]
[1642691386912,0.0017636,3263.6,3262.7,18.27]
[1642691387118,0.0017636,3263.6,3262.7,18.27170527]
[1642691387315,1.25876244,3263.3,3262.8,0.00113685]
[1642691387514,0.00284212,3263.5,3262.8,0.00113685]
[1642691387815,1.30614792,3263.1,3262.9,1.53333]
[1642691388513,1.30614792,3263.1,3262.9,19.80333]
[1642691388716,2.55057517,3263.1,3262.9,1.53333]
[1642691389161,2.55057517,3263.1,3262.8,0.00113685]
[1642691389557,2.55057517,3263.1,3262.7,0.00170527]
[1642691390561,6.371,3263.0,3262.0,2.30016]
[1642691390765,0.00370236,3262.7,3261.0,3.0269732]
[1642691390964,1.64817577,3262.6,3262.3,7.37e-05]
[1642691391163,6.0,3262.3,3261.5,1.534]
[1642691391366,0.76717,3261.9,3261.1,0.76717]
[1642691391565,0.76717,3261.9,3261.1,0.77399108]
[1642691391566,5.44727538,3261.2,3261.1,0.77399108]
[1642691392565,5.44727538,3261.2,3261.1,0.00682108]
[1642691392807,7.39727538,3261.2,3261.1,0.00682108]
[1642691393010,6.0,3261.1,3258.7,3.88848]
[1642691393213,0.371,3261.0,3259.8,25.44368666]
[1642691393413,0.3727636,3261.0,3259.9,0.00682108]
[1642691393613,0.76742,3260.8,3259.9,0.00682108]
[1642691393813,0.3727636,3260.7,3259.9,0.00682108]
[1642691394012,7.52985475,3260.0,3259.9,0.00682108]
[1642691394416,6.0,3260.0,3259.9,0.00682108]
[1642691394614,4.45231131,3260.0,3259.9,0.00682108]
[1642691394814,6.0,3261.1,3259.9,18.27682108]
[1642691394815,0.0017636,3260.3,3259.9,18.27682108]
[1642691395023,0.0017636,3260.9,3260.0,0.13453934]
[1642691395215,2.7615,3261.6,3260.0,18.410792]
[1642691395216,0.0017636,3260.7,3260.0,18.410792]
[1642691395415,1.21058815,3260.8,3260.1,3.22919571]
[1642691395616,1.21058815,3260.8,3260.0,18.27]
[1642691395617,0.0017636,3260.7,3260.0,0.76721]
[1642691395815,0.00617414,3260.7,3260.2,0.76721]
[1642691396015,1.21058815,3260.8,3260.2,0.76721]
[1642691396016,0.00384212,3260.6,3260.2,0.76721]
[1642691396418,0.0017636,3260.7,3260.3,18.27]
[1642691396419,0.00327369,3260.5,3260.3,18.27]
[1642691396888,0.0017636,3261.0,3260.2,0.76721]
[1642691396889,0.00270527,3260.4,3260.2,0.76721]
[1642691397289,1.28863543,3260.5,3260.2,0.76721]
[1642691397290,0.00213684,3260.3,3260.2,0.76721]
[1642691398094,0.00213684,3260.3,3259.9,1.53466]
[1642691398397,0.00213684,3260.3,3259.8,0.00308666]
[1642691398398,1.5476236,3260.2,3259.8,0.00308666]
[1642691398596,0.76771,3259.7,3258.7,0.76772]
[1642691398794,0.371,3259.6,3258.7,0.76772]
[1642691398995,0.09363596,3259.6,3258.8,0.00638951]
[1642691399496,6.57967039,3258.9,3258.8,0.00638951]
[1642691400319,6.52967039,3258.9,3258.8,0.00638951]
[1642691400515,5.07967039,3258.9,3258.8,0.00638951]
[1642691400921,0.76798,3258.5,3257.4,3.07055]
[1642691401118,0.371,3258.4,3257.4,3.07055]
[1642691401321,0.371,3258.4,3257.5,0.0073895]
[1642691401520,3.27169999,3258.8,3257.5,0.0073895]
[1642691401723,2.47967039,3258.9,3257.0,2.30366]
[1642691401724,6.0,3258.6,3257.0,2.30366]
[1642691401919,6.0,3258.6,3257.2,18.27]
[1642691401920,0.371,3258.5,3257.2,18.27]
[1642691402120,1.43001595,3258.0,3257.2,18.22]
[1642691402519,0.00227369,3257.9,3257.2,18.22]
[1642691402926,0.00170527,3257.8,3257.2,18.22]
[1642691403321,1.41165551,3258.0,3257.2,18.22]
[1642691403322,0.00113684,3257.7,3257.3,0.08729317]
[1642691403524,0.00113684,3257.7,3257.2,18.22]
[1642691403722,0.00227369,3257.9,3257.2,18.22]
[1642691404165,0.00170527,3257.8,3257.2,18.22]
[1642691404564,0.76902684,3257.7,3257.2,18.22]
[1642691404764,1.14796483,3257.6,3257.2,18.22]
[1642691404967,1.14796483,3257.6,3257.1,0.0022737]
[1642691405270,1.14796483,3257.6,3257.0,0.00284212]
[1642691405473,6.0,3257.4,3256.3,7.1029]
[1642691405668,0.76818,3257.1,3256.3,7.1029]
[1642691405866,0.76818,3257.1,3256.6,0.00227369]
[1642691405867,1.30325903,3256.7,3256.6,0.00227369]
[1642691406068,1.30325903,3256.7,3256.2,0.03]
[1642691406069,1.53632,3256.8,3256.5,0.09228123]
[1642691406273,1.53632,3256.8,3256.4,0.69693687]
[1642691406666,2.98371404,3256.8,3256.4,0.69693687]
[1642691406867,0.76816,3256.7,3256.4,0.69693687]
[1642691407071,0.76816,3256.7,3256.3,0.00170527]
[1642691407268,1.35751816,3256.6,3256.3,0.00170527]
[1642691408029,0.76816,3256.7,3256.3,0.00170527]
[1642691408224,0.76816,3256.7,3256.4,0.08563447]
[1642691408428,0.76816,3256.7,3256.3,0.00170527]
[1642691409030,1.37684835,3256.4,3256.3,0.00170527]
[1642691409235,2.51483039,3256.4,3256.3,0.00170527]
[1642691409430,15.05267713,3256.4,3256.3,0.00170527]
[1642691409832,15.05267713,3256.4,3256.2,0.03]
[1642691409833,7.65125703,3256.4,3256.2,0.03]
[1642691410032,0.00341054,3257.2,3256.2,0.03]
[1642691410238,0.00341054,3257.2,3255.9,3.51900312]
[1642691410239,3.3,3257.1,3255.9,3.51900312]
[1642691410438,0.00454738,3257.1,3255.9,3.51900312]
[1642691410643,0.00397896,3257.0,3256.0,0.00170527]
[1642691410837,0.00397896,3257.0,3256.0,18.27170527]
[1642691410838,1.15216529,3256.6,3256.0,18.27170527]
[1642691411039,1.15216529,3256.6,3256.0,0.00170527]
[1642691411239,1.15216529,3256.6,3256.1,0.00113685]
[1642691411240,0.00113684,3256.5,3256.1,0.00113685]
[1642691411439,0.00113684,3256.5,3255.9,3.28344444]
[1642691411440,0.00113684,3256.5,3255.9,0.0022737]
[1642691412077,0.00113684,3256.5,3255.9,3.28571814]
[1642691412277,0.00113684,3256.5,3255.9,0.0022737]
[1642691412575,0.76943684,3256.5,3255.9,0.7705537]
[1642691412775,0.76943684,3256.5,3255.9,0.0022737]
[1642691413179,1.24528527,3256.1,3255.9,0.0022737]
[1642691413776,2.01361527,3256.1,3255.9,0.0022737]
[1642691413982,2.01361527,3256.1,3255.8,10.45190847]
[1642691414376,2.01361527,3256.1,3255.8,10.44690847]
[1642691414576,2.01361527,3256.1,3255.8,4.29853847]
[1642691414577,1.13663531,3256.0,3255.8,4.29853847]
[1642691414976,2.25,3255.9,3255.7,5.12047761]
[1642691415618,0.10050448,3255.8,3255.5,4.18396604]
[1642691415828,0.76857,3255.7,3255.5,4.18396604]
[1642691416020,0.76857,3255.7,3255.6,0.00170527]
[1642691417218,1.53714,3255.8,3255.7,1.53713999]
[1642691417620,1.53714,3255.8,3255.7,1.53827683]
[1642691418818,1.53714,3255.8,3255.7,1.43827683]
[1642691420976,0.10050448,3255.7,3255.5,4.18396604]
[1642691421169,1.53714,3255.8,3255.5,4.15296604]
[1642691421170,2.51564,3255.8,3255.5,4.15296604]
[1642691421370,4.7,3255.5,3255.2,0.03]
[1642691421571,0.76874,3255.4,3255.2,0.03]
[1642691421770,0.79308384,3255.4,3255.3,0.0022737]
[1642691421970,0.79308384,3255.4,3254.8,0.108885]
[1642691421971,6.0,3255.3,3254.8,0.108885]
[1642691422369,6.0,3255.3,3254.9,0.00227369]
[1642691422370,2.64732939,3255.1,3254.9,0.00227369]
[1642691422569,2.64732939,3255.1,3254.8,0.07007998]
[1642691422570,4.2,3255.0,3254.8,0.07007998]
[1642691423024,4.65,3254.9,3254.3,1.5373]
[1642691423227,0.10400793,3254.8,3254.3,1.5373]
[1642691423423,0.10400793,3254.8,3254.4,0.00284212]
[1642691423633,0.10400793,3254.8,3253.6,0.108885]
[1642691423635,0.01246359,3254.5,3253.6,0.108885]
[1642691423833,0.4043114,3254.4,3253.6,0.108885]
[1642691424030,0.4043114,3254.4,3253.7,0.00397896]
[1642691424230,0.76905,3254.3,3253.7,0.00397896]
[1642691424630,1.15264427,3254.2,3253.7,0.00397896]
[1642691424830,1.25507414,3253.8,3253.7,0.00397896]
[1642691425431,2.02405414,3253.8,3253.7,0.00397896]
[1642691426672,2.02405414,3253.8,3252.5,1.55020722]
[1642691426877,2.02405414,3253.8,3251.2,0.03]
[1642691426878,0.01277385,3252.7,3251.2,0.03]
[1642691427075,0.04013671,3252.6,3251.8,0.01250246]
[1642691427275,0.9253,3252.6,3251.8,0.01250246]
[1642691427475,0.9253,3252.6,3251.9,1.61071721]
[1642691427672,1.2105,3254.3,3252.7,0.06752797]
[1642691427873,1.2105,3254.3,3252.8,18.27]
[1642691428079,8.339,3254.8,3252.9,4.19803316]
[1642691428080,0.00284211,3254.2,3252.9,4.19803316]
[1642691428278,0.00284211,3254.2,3253.3,0.01263281]
[1642691428473,1.34522649,3253.9,3253.3,0.01263281]
[1642691428673,1.34522649,3253.9,3253.5,0.76871]
[1642691428879,8.339,3254.8,3253.5,22.46787316]
[1642691428880,0.00568423,3254.7,3253.5,22.46787316]
[1642691429074,0.00568423,3254.7,3253.5,22.76787316]
[1642691429271,8.339,3254.8,3253.5,22.76787316]
[1642691429272,0.00511581,3254.6,3253.8,18.27]
[1642691429674,1.1993,3255.7,3254.0,6.0]
[1642691429877,1.1993,3255.7,3253.9,4.35098316]
[1642691429878,1.31516328,3255.8,3254.9,18.27]
[1642691430075,1.31516328,3255.8,3254.5,0.01287131]
[1642691430715,2.08365328,3255.8,3254.5,0.78138131]
[1642691431017,3.8767,3256.1,3255.1,0.76847]
[1642691431215,1.5369,3256.4,3255.1,0.76847]
[1642691431420,0.00852636,3256.0,3255.2,18.27]
[1642691431819,0.00795793,3255.9,3255.1,0.76847]
[1642691432019,1.51353088,3255.5,3255.1,0.76847]
[1642691432220,0.05886449,3255.4,3255.1,0.76847]
[1642691432420,0.00511582,3255.4,3255.1,0.76847]
[1642691432621,0.00454739,3255.3,3255.1,0.76847]
[1642691432823,1.29743627,3255.8,3255.3,0.00909478]
[1642691433222,0.0022737,3255.7,3255.3,0.00909478]
[1642691433622,1.4395643,3255.4,3255.3,0.00909478]
[1642691434282,4.5895643,3255.4,3255.3,0.00909478]
[1642691434686,1.4395643,3255.4,3255.3,0.00909478]
[1642691435089,0.76858,3255.5,3255.3,0.77761478]
[1642691435286,0.00170527,3255.6,3255.3,0.77761478]
[1642691435488,0.08393999,3255.5,3255.3,0.00909478]
[1642691435789,0.00113685,3255.5,3255.3,0.00909478]
[1642691436188,0.00113685,3255.5,3254.7,1.49626478]
[1642691436189,6.0,3255.4,3254.7,1.49626478]
[1642691436389,1.49431735,3254.8,3254.7,1.49626478]
[1642691436789,0.76868,3255.0,3254.7,1.49626478]
[1642691437190,0.76868,3255.0,3254.8,0.04103695]
[1642691437391,1.15226169,3255.3,3254.8,0.77142212]
[1642691437590,1.15226169,3255.3,3254.9,0.00227369]
[1642691437817,1.53841685,3255.5,3254.9,0.00227369]
[1642691438019,0.00113685,3255.5,3255.0,0.3]
[1642691438218,0.00113685,3255.5,3254.9,0.00227369]
[1642691438420,0.00113685,3255.5,3255.1,0.00113685]
[1642691438617,0.00113685,3255.5,3255.0,0.3]
[1642691438818,0.00113685,3255.5,3254.9,0.00227369]
[1642691439017,0.00113685,3255.5,3255.1,0.00113685]
[1642691439222,1.26210836,3255.2,3255.1,1.537]
[1642691439417,1.26210836,3255.2,3255.1,1.53813685]
[1642691439816,0.00113685,3255.5,3255.1,1.53813685]
[1642691440019,0.00113685,3255.5,3255.1,1.83813685]
[1642691440220,1.53685,3256.4,3255.2,0.00643184]
[1642691440420,1.53685,3256.4,3255.1,20.10813685]
[1642691440618,0.00454739,3256.3,3255.3,0.00113685]
[1642691440818,0.00454739,3256.3,3255.4,0.76841]
[1642691441018,1.39022356,3256.2,3255.4,0.76841]
[1642691441228,1.34595826,3256.2,3255.4,0.76841]
[1642691441418,1.51523361,3255.5,3255.3,1.53682]
[1642691441671,1.22490125,3255.8,3255.3,1.53682]
[1642691442070,0.00113685,3255.7,3255.3,1.53682]
[1642691442272,0.00113685,3255.7,3255.3,1.48682]
[1642691442473,0.00341054,3256.1,3255.3,1.48682]
[1642691442871,1.53685,3256.4,3255.3,1.48682]
[1642691442872,1.47750931,3255.7,3255.3,1.48682]
[1642691444075,1.11925625,3255.6,3255.3,1.48682]
[1642691445327,1.47750931,3255.7,3255.3,1.48682]
[1642691445712,1.47750931,3255.7,3255.3,4.4418204]
[1642691445916,0.77129212,3256.0,3255.3,1.48682]
[1642691446120,0.00284212,3256.0,3255.4,0.01620409]
[1642691446318,0.00227369,3255.9,3255.4,0.01620409]
[1642691446525,0.00227369,3255.9,3255.4,18.28620409]
[1642691446722,11.1294,3257.2,3255.7,18.27]
[1642691446921,11.1294,3257.2,3256.0,18.27]
[1642691447127,11.1294,3257.2,3256.4,18.27]
[1642691447320,1.2092,3257.8,3256.6,1.53589]
[1642691447524,9.5412,3258.7,3256.8,18.27]
[1642691447725,9.5412,3258.7,3257.0,6.0]
[1642691448020,0.00568424,3258.6,3257.2,18.27]
[1642691448418,2.1822528,3258.4,3257.3,3.36871173]
[1642691448619,2.1822528,3258.4,3257.6,0.76787]
[1642691448820,0.00397897,3258.3,3257.6,0.76787]
[1642691449263,1.235488,3258.2,3257.6,0.76787]
[1642691449673,1.235488,3258.2,3257.4,1.53687685]
[1642691449674,0.77080212,3258.1,3257.4,1.53687685]
[1642691449870,0.03232798,3258.0,3257.4,0.00113685]
[1642691450069,1.37368906,3257.9,3257.4,0.00113685]
[1642691450269,0.04119503,3257.8,3257.2,0.00227369]
[1642691450569,1.43838615,3257.4,3257.2,0.00227369]
[1642691450773,1.2100774,3257.7,3257.2,0.77033369]
[1642691450971,1.2100774,3257.7,3257.3,3.05463389]
[1642691451171,0.00113685,3257.8,3257.3,3.05463389]
[1642691451172,0.00113685,3257.8,3257.3,3.05633916]
[1642691451369,0.00113685,3257.8,3257.5,0.0310247]
[1642691451571,0.00376812,3258.6,3257.6,4.6]
[1642691451770,0.00376812,3258.6,3257.8,0.03451597]
[1642691451975,1.43094213,3258.4,3258.0,18.27]
[1642691452181,1.3243,3259.2,3258.2,18.27]
[1642691452572,0.00341054,3259.1,3258.3,0.00113684]
[1642691453028,1.3243,3259.2,3258.3,0.00113684]
[1642691453029,0.00284212,3259.0,3258.3,0.00113684]
[1642691453230,0.00284212,3259.0,3258.5,18.27]
[1642691453231,1.51779838,3258.9,3258.5,18.27]
[1642691453432,0.0022737,3258.9,3258.6,3.36700646]
[1642691453633,3.7671,3260.2,3258.6,3.36700646]
[1642691453634,3.7671,3260.2,3258.9,3.35]
[1642691453832,11.07806604,3260.3,3259.0,3.36700646]
[1642691453833,11.0657,3260.3,3259.0,3.36700646]
[1642691454034,7.90941533,3261.2,3259.1,0.1613477]
[1642691454035,1.18831533,3261.2,3259.1,0.1613477]
[1642691454239,1.18831533,3261.2,3259.7,0.01265564]
[1642691454240,1.1759,3261.2,3259.7,0.01265564]
[1642691454437,8.2038,3261.9,3259.8,0.371]
[1642691454438,1.30298201,3260.5,3259.8,0.371]
[1642691454633,1.30298201,3260.5,3260.0,18.27]
[1642691454837,1.30298201,3260.5,3259.9,3.36700646]
[1642691454838,0.00852635,3260.4,3260.2,18.27]
[1642691455136,8.2038,3261.9,3260.6,0.76716]
[1642691455137,0.76717,3261.7,3260.6,0.76716]
[1642691455435,8.2038,3261.9,3260.8,18.27]
[1642691455637,8.2038,3261.9,3260.3,0.371]
[1642691455638,1.17940243,3261.5,3260.3,0.371]
[1642691455832,1.17940243,3261.5,3259.8,2.30145]
[1642691455833,4.25035332,3260.4,3259.8,2.30145]
[1642691456031,4.25035332,3260.4,3259.2,4.0297]
[1642691456032,1.29198768,3260.3,3259.2,4.0297]
[1642691456234,4.25035332,3260.4,3259.4,1.53484]
[1642691456668,1.20035332,3260.4,3259.4,1.38484]
[1642691456869,1.20035332,3260.4,3259.6,0.05887341]
[1642691457068,1.5347,3261.3,3259.6,18.32887341]
[1642691457268,1.22806089,3260.2,3259.7,0.00397897]
[1642691457671,0.03267062,3260.1,3259.7,0.00397897]
[1642691457870,1.22806089,3260.2,3259.5,18.27511581]
[1642691458076,1.22806089,3260.2,3259.6,0.03708046]
[1642691458270,1.22806089,3260.2,3259.6,0.00454739]
[1642691458471,1.34140144,3260.0,3259.7,0.00397897]
[1642691458677,1.34140144,3260.0,3259.6,0.00454739]
[1642691458877,0.10942577,3259.9,3259.6,0.00454739]
[1642691459075,0.10942577,3259.9,3259.5,0.00511581]
[1642691459274,0.10942577,3259.9,3258.5,0.01080005]
[1642691459275,0.0123432,3259.8,3258.5,0.01080005]
[1642691459473,0.3833432,3259.8,3258.5,0.01080005]
[1642691459672,0.0517614,3259.7,3258.5,0.01080005]
[1642691459874,0.7677971,3259.6,3258.5,0.01080005]
[1642691460079,0.89805618,3259.8,3258.5,0.01080005]
[1642691460326,1.1902,3260.7,3259.0,0.0126762]
[1642691460623,1.1902,3260.7,3258.7,18.27]
[1642691460624,1.1902,3260.7,3260.4,0.01233944]
[1642691460823,8.21944739,3261.2,3260.4,0.01233944]
[1642691460824,0.00113685,3260.6,3260.4,0.01233944]